Cogmind - Beta 13 @@@ ROGUE MODE // 2024.05.25 @ 13:13:57 Player: Barbarossa Result: Destroyed by Y-54 Guardian with Gatling Laser Performance ------------- Evolutions (4) 2000 Regions Visited (6) 1200 Robots Destroyed (24) 120 Value Destroyed (619) 619 Prototype IDs (1) 20 Alien Tech Used (0) 0 Bonus (500) 500 TOTAL SCORE: 4459 Bonus ------- Entered DSFs 500 Cogmind --------- Core Integrity 0/850 Matter 88/300 Energy 310/310 System Corruption 2% Temperature Cool (12) Movement Core (200) Ox3 Location -6/Factory Parts ------- > --- POWER (2) -------- Fission Core > --- PROPULSION (5) --- (None) > --- UTILITY (6) ------ Signal Interpreter > --- WEAPON (2) ------- (None) > --- INVENTORY (5) ---- Advanced Heat Sink Energy Well (350) Matter Compressor (0) Advanced Visual Processing Unit Hacking Suite Peak State ------------ > --- POWER ------------ Light Ion Engine Improved Ion Engine > --- PROPULSION ------- Flight Unit Flight Unit Flight Unit Flight Unit Improved Flight Unit > --- UTILITY ---------- Advanced Heat Sink Small Storage Unit Sensor Array Signal Interpreter Propulsion Shielding Hacking Suite > --- WEAPON ----------- Small Laser Mini Grenade Launcher > --- INVENTORY -------- Disposable Heat Sink High-capacity Matter Pod Advanced Visual Processing Unit ECM Suite Hacking Suite Mini Grenade Launcher Datajack Plasma Cutter [Rating: 26] Favorites ----------- Power Light Ion Engine Engine Light Ion Engine Power Core Fission Core Propulsion Flight Unit Leg Aluminum Leg Flight Unit Flight Unit Utility Small Storage Unit Device ECM Suite Storage Small Storage Unit Processor Signal Interpreter Hackware Hacking Suite Protection Propulsion Shielding Weapon Small Laser Energy Gun Small Laser Ballistic Gun Assault Rifle Launcher Mini Grenade Launcher Special Weapon Plasma Cutter Special Melee Weapon Datajack Build | -11 -10 -9 -8 -7 -7 -6 ------- Run | Yrd Mat Mat Mat Fac DSF Fac Slots Evolved 8 | . . 2 2 2 . 2 Power 1 | . . . . 1 . . Propulsion 3 | . . 2 . 1 . . Utility 4 | . . . 2 . . 2 Weapon . | . . . . . . . Parts Attached 30 | . 3 6 4 . 1 16 Power 7 | . 2 . 1 . . 4 Engine 6 | . 2 . 1 . . 3 Core 1 | . . . . . . 1 Reactor . | . . . . . . . Propulsion 6 | . . 4 . . 1 1 Treads . | . . . . . . . Leg . | . . . . . . . Wheel . | . . . . . . . Hover . | . . . . . . . Flight 6 | . . 4 . . 1 1 Utility 8 | . 1 . 2 . . 5 Device 4 | . . . 1 . . 3 Storage . | . . . . . . . Processor 2 | . 1 . . . . 1 Hackware 1 | . . . 1 . . . Protection 1 | . . . . . . 1 Artifact . | . . . . . . . Weapon 9 | . . 2 1 . . 6 Energy Gun 3 | . . 2 . . . 1 Energy Cannon . | . . . . . . . Ballistic Gun . | . . . . . . . Ballistic Cannon . | . . . . . . . Launcher 3 | . . . 1 . . 2 Special Weapon 2 | . . . . . . 2 Impact Weapon . | . . . . . . . Slashing Weapon . | . . . . . . . Piercing Weapon . | . . . . . . . Special Melee Weapon 1 | . . . . . . 1 Unidentified Prototypes 1 | . . 1 . . . . Parts Lost 21 | . . . 2 . . 19 Power 5 | . . . 1 . . 4 Propulsion 5 | . . . . . . 5 Utility 5 | . . . . . . 5 Weapon 6 | . . . 1 . . 5 Highest Loss Streak 5 | . . . 2 . . 5 To Critical Strikes . | . . . . . . . Average Slot Usage (%) 80 | . 92 85 100 . 84 68 Engine 7 | . 14 11 9 . 7 3 Leg 7 | . 28 13 . . . . Flight 15 | . . 16 36 . 30 17 Device 7 | . . . 9 . 7 11 Storage 8 | . 14 11 9 . 7 5 Processor 7 | . 7 11 9 . 7 6 Hackware 4 | . . . 9 . 7 6 Protection 2 | . . . . . . 4 Energy Gun 9 | . 14 17 17 . 7 4 Ballistic Gun 3 | . 14 3 . . . . Launcher 2 | . . . . . 7 4 Naked Turns . | . . . . . . . Heaviest Build 24 | 13 13 11 11 11 11 24 Greatest Support 21 | 20 20 20 17 17 21 21 Greatest Overweight (x) 7 | . . . . . . 7 Average Overweight (x) . | . . . . . . . Largest Inventory Capacity 8 | . 8 8 8 8 8 8 Average Capacity 7 | . 8 8 8 8 8 7 Most Carried 8 | . 8 8 8 8 8 8 Average Carried 7 | . 7 7 5 8 7 7 Final Capacity 8 | 8 8 8 8 8 8 5 Final Carried 8 | 6 8 7 8 8 8 5 Class Distribution -------------------- 46% | Mutant 35% | Scavenger-Sprinter 18% | Scavenger-Mutant Dominant Class ---------------- Mutant | -10/Materials Mutant | -9/Materials Scavenger-Sprinter | -8/Materials Scavenger-Sprinter | -7/Factory Scavenger-Sprinter | -7/DSF Scavenger-Mutant | -6/Factory Resources | -11 -10 -9 -8 -7 -7 -6 ----------- Run | Yrd Mat Mat Mat Fac DSF Fac Matter Collected 405 | 200 117 . . . . 88 Remotely . | . . . . . . . Salvage Created 645 | . 243 30 . . . 372 Parts 45 | . 24 4 . . . 17 Haulers Intercepted 1 | . . . . . . 1 Recyclers Shooed . | . . . . . . . Parts Field Recycled . | . . . . . . . Retrieved Matter . | . . . . . . . Parts Self-Destructed . | . . . . . . . Prevented . | . . . . . . . Kills | -11 -10 -9 -8 -7 -7 -6 ------- Run | Yrd Mat Mat Mat Fac DSF Fac Combat Hostiles Destroyed 13 | . 6 . . . . 7 Guns 6 | . 6 . . . . . AOE 6 | . . . . . . 6 Classes Destroyed 11 | . 6 . . . . 5 Worker 2 | . 2 . . . . . Builder 2 | . 1 . . . . 1 Tunneler 1 | . . . . . . 1 Hauler 1 | . . . . . . 1 Recycler 1 | . . . . . . 1 Operator 1 | . 1 . . . . . Watcher 3 | . 2 1 . . . . Swarmer 7 | . 4 . . . . 3 Grunt 2 | . 2 . . . . . Sentry 3 | . . . . . . 3 Programmer 1 | . . . . . . 1 Best Kill Streak 7 | . 7 1 . . . 3 Combat Bots Only 3 | . 3 . . . . 3 Max Kills in Single Turn 1 | . 1 1 . . . 1 Gunslinging . | . . . . . . . Exploded 1 | . . . . . . 1 Melee . | . . . . . . . Uniques/NPCs Destroyed . | . . . . . . . Combat | -11 -10 -9 -8 -7 -7 -6 -------- Run | Yrd Mat Mat Mat Fac DSF Fac Hostile Shots Fired 388 | . 72 6 14 . 1 295 Missed 202 | . 34 3 8 . 1 156 Damage Taken 2140 | . 345 33 90 . . 1672 Core 956 | . 78 11 17 . . 850 Absorbed by Shields . | . . . . . . . Redirected to Shielding 37 | . . . . . . 37 Regen/Repaired (Parts) 17 | . . . . . . 17 Core Remaining (%) 92 | 100 68 97 96 . 100 . Volleys Fired 64 | . 29 3 . . . 32 Largest 2 | . 2 2 . . . 2 Hottest 80 | . 60 80 . . . 75 Shots Fired 109 | . 56 6 . . . 47 Gun 88 | . 56 6 . . . 26 Cannon . | . . . . . . . Launcher 15 | . . . . . . 15 Special 6 | . . . . . . 6 Kinetic 29 | . 29 . . . . . Thermal 65 | . 27 6 . . . 32 Explosive 15 | . . . . . . 15 Electromagnetic . | . . . . . . . Robot Hit Streak 9 | . 6 2 . . . 9 Robot Miss Streak 3 | . 3 1 . . . 2 Penetration Max . | . . . . . . . Secondary Targets 2 | . 2 . . . . . Max Gunslinging Chain 1 | . 1 . . . . . Shots Hit Robots 72 | . 34 3 . . . 35 Core Hits 47 | . 16 2 . . . 29 Critical Kills . | . . . . . . . Critical Parts Destroyed 1 | . 1 . . . . . Critical Strikes 3 | . 1 . . . . 2 Destroy 1 | . 1 . . . . . Sever 2 | . . . . . . 2 Melee Attacks . | . . . . . . . Impact . | . . . . . . . Slashing . | . . . . . . . Piercing . | . . . . . . . Sneak Attacks . | . . . . . . . Combat Hostiles . | . . . . . . . Follow-up Attacks . | . . . . . . . Damage Inflicted 1679 | . 445 32 . . . 1202 Guns 762 | . 445 32 . . . 285 Cannons . | . . . . . . . Explosions 847 | . . . . . . 847 Melee . | . . . . . . . Ramming 4 | . . . . . . 4 Kinetic 224 | . 224 . . . . . Thermal 681 | . 221 32 . . . 428 Explosive 770 | . . . . . . 770 Electromagnetic . | . . . . . . . Impact . | . . . . . . . Slashing . | . . . . . . . Piercing . | . . . . . . . Highest Corruption 2 | . . . . . . 2 Average Corruption 2 | . . . . . . 2 Corruption Purged . | . . . . . . . Corruption Blocked . | . . . . . . . Overload Shots . | . . . . . . . Overflow Damage 104 | . . . . . . 104 Projectiles . | . . . . . . . Explosions 104 | . . . . . . 104 Melee . | . . . . . . . Knockbacks . | . . . . . . . Impact . | . . . . . . . Kinetic . | . . . . . . . Secondary . | . . . . . . . Self-Inflicted Damage 281 | . . . . . . 281 Shots 7 | . . . . . . 7 Rammed 4 | . . . . . . 4 Targets Rammed 4 | . . . . . . 4 Kicked . | . . . . . . . Crushed . | . . . . . . . Highest Temperature 57 | . 24 57 . . . 43 Average Temperature 19 | . 16 28 . . . 16 Received Heat Transfer 573 | . 96 12 36 . . 429 Siege Activations . | . . . . . . . Robots Corrupted . | . . . . . . . Combat Hostiles . | . . . . . . . Parts Fried . | . . . . . . . Impact Corruptions . | . . . . . . . Robots Melted 1 | . . . . . . 1 Combat Hostiles 1 | . . . . . . 1 Parts Melted 4 | . 1 . . . . 3 Heat Transferred 1497 | . 500 75 . . . 922 Parts Sabotaged . | . . . . . . . Parts Stolen . | . . . . . . . Parts Stripped . | . . . . . . . Power Chain Reactions . | . . . . . . . Alert | -11 -10 -9 -8 -7 -7 -6 ------- Run | Yrd Mat Mat Mat Fac DSF Fac Peak Influence 384 | . 205 143 94 22 15 384 Initial 86 | . . 86 59 22 15 7 Average 152 | . 121 98 65 22 15 202 Maximum Alert Level 1 | . 1 . . . . 1 Low Security (%) 69 | . 68 100 100 100 100 55 Level 1 30 | . 31 . . . . 44 Level 2 . | . . . . . . . Level 3 . | . . . . . . . Level 4 . | . . . . . . . Level 5 . | . . . . . . . High Security . | . . . . . . . Max Security . | . . . . . . . Squads Dispatched 5 | . 2 . . . . 3 Investigation 1 | . . . . . . 1 Extermination . | . . . . . . . Reinforcement 4 | . 2 . . . . 2 Assault . | . . . . . . . Garrison . | . . . . . . . Intercept . | . . . . . . . Searches Triggered . | . . . . . . . Construction Impeded . | . . . . . . . Haulers Reinforced . | . . . . . . . Active Scanning Responses . | . . . . . . . Cargo Convoy Interrupts . | . . . . . . . Stealth | -11 -10 -9 -8 -7 -7 -6 --------- Run | Yrd Mat Mat Mat Fac DSF Fac Distress Signals 2 | . 1 1 . . . . Communications Jammed . | . . . . . . . Distress Signals . | . . . . . . . Times Spotted 44 | . 16 5 9 . 1 13 Peak Tracking Total 8 | . 5 4 8 . 1 4 Tactical Retreats 3 | . . . 2 . . 1 Traps | -11 -10 -9 -8 -7 -7 -6 ------- Run | Yrd Mat Mat Mat Fac DSF Fac Traps Triggered 1 | . . . . . . 1 Indirectly . | . . . . . . . Trap Hack Attempts . | . . . . . . . Triggered . | . . . . . . . Disarmed . | . . . . . . . Reprogrammed . | . . . . . . . Reused . | . . . . . . . Traps Extracted . | . . . . . . . Installed . | . . . . . . . Triggered . | . . . . . . . Machines | -11 -10 -9 -8 -7 -7 -6 ---------- Run | Yrd Mat Mat Mat Fac DSF Fac Machines Disabled 10 | . . . . . . 10 Max in Single Turn 4 | . . . . . . 4 Machines Repaired . | . . . . . . . Machines Dismantled . | . . . . . . . Machines Sabotaged . | . . . . . . . Overloaded Fab Kills . | . . . . . . . Hacking | -11 -10 -9 -8 -7 -7 -6 --------- Run | Yrd Mat Mat Mat Fac DSF Fac Machines Accessed 10 | . 1 1 1 1 . 6 Terminals 8 | . 1 1 1 1 . 4 Fabricators 1 | . . . . . . 1 Repair Stations 1 | . . . . . . 1 Recycling Units . | . . . . . . . Scanalyzers . | . . . . . . . Garrison Access . | . . . . . . . Total Hacks 25 | . 2 2 3 2 . 16 Successful 11 | . 1 1 1 1 . 7 Failed 14 | . 1 1 2 1 . 9 Catastrophic 6 | . 1 . 2 . . 3 Database Lockouts . | . . . . . . . Manual 13 | . 2 2 3 . . 6 Terminals 18 | . 2 2 3 2 . 9 Fabricators 4 | . . . . . . 4 Repair Stations 3 | . . . . . . 3 Recycling Units . | . . . . . . . Scanalyzers . | . . . . . . . Garrison Access . | . . . . . . . Terminal Hacks 5 | . . . 1 1 . 3 Record 1 | . . . . . . 1 Open DSF 2 | . . . . 1 . 1 Alert Level 1 | . . . . . . 1 Unreport Threat 1 | . . . 1 . . . Fabricator Hacks 1 | . . . . . . 1 Network Status 1 | . . . . . . 1 Repair Station Hacks 2 | . . . . . . 2 Scan Component 1 | . . . . . . 1 Repair 1 | . . . . . . 1 Recycling Unit Hacks . | . . . . . . . Scanalyzer . | . . . . . . . Garrison Access Hacks . | . . . . . . . Unauthorized Hacks 3 | . 1 1 . . . 1 Terminals 3 | . 1 1 . . . 1 Botnet 3 | . 1 1 . . . 1 Fabricators . | . . . . . . . Repair Stations . | . . . . . . . Recycling Units . | . . . . . . . Scanalyzers . | . . . . . . . Garrison Access . | . . . . . . . Data Cores Recovered . | . . . . . . . Used . | . . . . . . . Hacking Detections 10 | . 1 1 1 1 . 6 Full Trace Events 1 | . . . . . . 1 Feedback Events . | . . . . . . . Feedback Blocked . | . . . . . . . Robot Schematics Acquired . | . . . . . . . Robots Built . | . . . . . . . Authchips . | . . . . . . . Time . | . . . . . . . Total Robot Build Rating . | . . . . . . . Part Schematics Acquired . | . . . . . . . Parts Built . | . . . . . . . Authchips . | . . . . . . . Time . | . . . . . . . Total Part Build Rating . | . . . . . . . Parts Repaired 1 | . . . . . . 1 Time 13 | . . . . . . 13 Parts Recycled . | . . . . . . . Recycled Matter . | . . . . . . . Retrieved Matter . | . . . . . . . Retrieved Components . | . . . . . . . Parts Scanalyzed . | . . . . . . . Part Schematics Acquired . | . . . . . . . Parts Damaged . | . . . . . . . Bothacking | -11 -10 -9 -8 -7 -7 -6 ------------ Run | Yrd Mat Mat Mat Fac DSF Fac Used RIF Installer . | . . . . . . . Robots Hacked . | . . . . . . . Non-combat . | . . . . . . . Combat . | . . . . . . . Robot Hacks Applied . | . . . . . . . Relay Couplers Released . | . . . . . . . Fabnet Peak Effective % . | . . . . . . . Robots Rewired . | . . . . . . . Allies Hacked . | . . . . . . . Hacks Repelled . | . . . . . . . Allies | -11 -10 -9 -8 -7 -7 -6 -------- Run | Yrd Mat Mat Mat Fac DSF Fac Total Allies . | . . . . . . . Largest Group . | . . . . . . . Highest-Rated Group . | . . . . . . . Highest-Rated Ally . | . . . . . . . Total Orders . | . . . . . . . Ally Attacks . | . . . . . . . Total Damage . | . . . . . . . Kills . | . . . . . . . Allies Corrupted . | . . . . . . . Allies Melted . | . . . . . . . Intel | -11 -10 -9 -8 -7 -7 -6 ------- Run | Yrd Mat Mat Mat Fac DSF Fac Robot Analysis Total . | . . . . . . . Derelict Logs Recovered . | . . . . . . . Drone Launches . | . . . . . . . Drone Recoveries . | . . . . . . . Exploration | -11 -10 -9 -8 -7 -7 -6 ------------- Run | Yrd Mat Mat Mat Fac DSF Fac Turns Passed 1158 | . 266 130 137 1 19 605 Spaces Moved 1408 | 1 139 180 342 3 54 689 Core 138 | . . . . . . 138 Treads . | . . . . . . . Legs 198 | 1 139 58 . . . . Wheels . | . . . . . . . Hover . | . . . . . . . Flight 1072 | . . 122 342 3 54 551 Fastest Speed 28 | 120 120 31 31 31 28 28 Average Speed 56 | 120 120 59 31 31 30 58 Slowest Speed 400 | 120 120 120 31 31 31 400 Overloaded Moves . | . . . . . . . Propulsion Burnouts . | . . . . . . . Robots Hopped 2 | . . 2 . . . . Cave-ins Triggered . | . . . . . . . Exploration Rate (%) 24 | 2 28 19 37 . 43 20 Regions Visited 6 Branch Regions . Pre-discovered Areas . | . . . . . . . Known Exits Taken 4 | . 1 1 1 1 . . Unknown Exits Taken 1 | 1 . . . . . . Scrap Searched . | . . . . . . . Spaces Dug . | . . . . . . . Terrain Destroyed 120 | . . . . . . 120 Melee . | . . . . . . . Projectile . | . . . . . . . AOE 120 | . . . . . . 120 Terrain Rammed . | . . . . . . . Walls Destroyed . | . . . . . . . Machines Disabled . | . . . . . . . Actions | -11 -10 -9 -8 -7 -7 -6 --------- Run | Yrd Mat Mat Mat Fac DSF Fac Total 1636 | . 184 194 371 2 55 830 Wait 103 | . . . 22 . . 81 Move 1398 | . 138 175 341 2 53 689 Hop 2 | . . 2 . . . . Pick Up 18 | . 7 3 4 . 1 3 Fast Attach 15 | . 2 2 1 . . 10 Attach 8 | . . 1 3 . 1 3 Detach . | . . . . . . . Swap 7 | . 1 3 . . . 3 Drop 17 | . 7 5 . . . 5 Fire 64 | . 29 3 . . . 32 Melee . | . . . . . . . Ram 4 | . . . . . . 4 Kick . | . . . . . . . Crush . | . . . . . . . Escape Stasis . | . . . . . . . Rewire . | . . . . . . . Trap . | . . . . . . . Miscellaneous . | . . . . . . . Route ------- -11/Scrapyard -10/Materials (discovered 2 exits: *Mat / [*Min]) -9/Materials -8/Materials -7/Factory -7/DSF -6/Factory (discovered 1 exit: [*Ext]) History --------- Turn | Location | Event 1 | -11/Scrapyard | Discovered new exit (range 0) 1 | -11/Scrapyard | Entered Materials 160 | -10/Materials | Discovered new exit (range 8) 183 | -10/Materials | Discovered new exit (range 12) 265 | -10/Materials | Identified exit to Materials 267 | -10/Materials | Entered another Materials area 267 | -9/Materials | Evolved 2 slots: Propulsion x2 339 | -9/Materials | Build established: Mutant 394 | -9/Materials | Discovered new exit (range 4) 395 | -9/Materials | Identified exit to Materials 397 | -9/Materials | Entered another Materials area 397 | -8/Materials | Evolved 2 slots: Utility x2 531 | -8/Materials | Discovered new exit (range 10) 533 | -8/Materials | Identified exit to Factory 534 | -8/Materials | Entered Factory 534 | -7/Factory | Evolved 2 slots: Power x1, Propulsion x1 535 | -7/Factory | Identified exit to DSF 535 | -7/Factory | Entered DSF 547 | -7/DSF | Discovered new exit (range 15) 553 | -7/DSF | Identified exit to Factory 554 | -7/DSF | Entered Factory 554 | -6/Factory | Evolved 2 slots: Utility x2 642 | -6/Factory | Build established: Scavenger-Sprinter 708 | -6/Factory | Discovered new exit (range 13) 726 | -6/Factory | Lost 3 parts (1p1n1u) 727 | -6/Factory | Repaired Flight Unit 822 | -6/Factory | Lost 5 parts (2p1n1u1w) 999 | -6/Factory | Lost 3 parts (3n) 1053 | -6/Factory | Core integrity fell below 50% 1114 | -6/Factory | Lost 5 parts (1p4w) 1122 | -6/Factory | Core integrity fell below 20% 1159 | -6/Factory | Destroyed by Y-54 Guardian with Gatling Laser Last Messages --------------- 01108_ ALERT: Suspicious activity at Terminal F014. Dispatching Investigation squad. 01121_ Triggered Tesla Bomb Trap. 01121_ A bubble of electromagnetic force engulfs the area. 01121_ Tesla Bomb Trap short circuited. 01121_ A bubble of electromagnetic force engulfs the area. 01133_ System Restoration Module destroyed. 01135_ T-07 Excavator is excavating. 01140_ Acquired Fission Core. 01147_ Slammed into Y-54 Guardian. 01147_ Destabilizing: System interference. 01147_ Signal Interpreter temporarily disabled. 01149_ Slammed into Y-54 Guardian. 01151_ Hacking Suite destroyed. 01151_ Slammed into Y-54 Guardian. 01153_ Slammed into G-50 Soldier. 01156_ T-07 Excavator is excavating. 01159_ ECM Suite destroyed. Map ----- +----------------------------------------------------+ | ?????????????????????????????????????????????????? | | ?????????????????????????????????????????????????? | | ?????????????????????????????????????????????????? | | ????????###########????#######???????????????????? | | ????????# #??? ??????????????????? | | ????????# ! #??# ! #?????????????????? | | ????????# #??# #?????????????"???? | | ????????# ! #??# """ """ #????????????"""??? | | ????????# ! #??# """ """ #??????????? ""???? | | ????????# #??# """ """ #?????????? ????? | | ????????# #??# #??????####+####??? | | ????????# #??# #??????# #??? | | ????????#####+#####??#####+############ #??? | | ???????????# ######### # ! | | ???????????# u T + | | ???????????# ######### #??? | | ???????????############# ############ #??? | | ?????????????# # #??????????# #??? | | ?????????????# # #??????????### ###??? | | ?????????????# # #????????????# #????? | | ?????????????# # #????????????# ##???# | | ?????????????# """"""" # #????????????# # | | ?????????????# """"""" # #????????????# # """ | | ?????????????# """"""" Yg #????????????# # """ | | ?????????????# """"""" # #????????????# # """ | | ?????????????????####### @ #????????????# + | | ?????????????????????# #??????????# # ! | | ?????????????????????# +??????????# # | | ???????????????????? #??????????# #? | | ?????????????????? +??????????# #?#+## | | ????????????????? #??????????# #?# #? | | ????????????????###### #??????????# #?# #? | | ?????????????????????# #??????????# ### ## | | ?????????????????????#### ####??????????# | | ?????????????????????????t ?????????????# | | ????????????????????????? ?????????????# """" | | ?????????????????????????##?????????????# """" # | | ????????????????????????????????????????# """" # | | ????????????????????????????????????????# # | | ????????????????????????????????????????# """" # | | ????????????????????????????????????????# """" # | | ????????????????????????????????????????# """" # | | ????????????????????????????????????????# ? # | | ????????????????????????????????????????# ?? # | | ???????????????????????????????????????? ?? # | | ????????????????????????????????????????# ?? # | | ?????????????????????????????????????????##??## #? | | ??????????????????????????????????????????????# ?? | | ??????????????????????????????????????????????? ?? | | ?????????????????????????????????????????????????? | +----------------------------------------------------+ Best States ------------- Heat Dissipation 56 Energy Generation 18 Energy Capacity 310 Matter Stores 300 Matter Capacity 300 Sight Range 16 Robot Scan Range 14 Terrain Scan Density 10 ECM Strength 1 Corruption Containment 8 Propulsion Shielding 33 Evasion (%) 64 Offensive Hacking 10 Item Schematics ----------------- None Robot Schematics ------------------ None Fabricated ------------ Nothing Alien Tech Used ----------------- None Achievements -------------- None Challenges ------------ None Game ------ Seed IntegratedLaserModule Manual? 0 Play Time 00:21:34 Cumulative 192.8 hours Start 2024.05.25 @ 12:56:03 End 2024.05.25 @ 13:13:57 Sessions 1 Manual Loads 0 Difficulty Rogue Special Mode None Game No. 356 Rogue 356 Adventurer 0 Explorer 0 Win Type - Total 0 Types 0/0/0/0/0/0/0/0/0 Lore% 44 Gallery% 55 Achievement% 39 Wizard Run 0 Options --------- Layout 1 ASCII 0 Keyboard 0 Movement Mouse Keybinds 0 Fullscreen 1 Font 24/Smallcaps Map View 50x40 Zoom Use 0% Tactical HUD 1 Map Filters NONE Filters NONE Steam 1 RUN: a3aafa55-441a-4c76-a0d7-c7ec247737d2